bitfinex/quotes_ETHUSD_20250424
["timestamp","ask_amount","ask_price","bid_price","bid_amount"]
[1745521950669,0.29608681,1757.7,1757.6,5.68957669]
[1745521950830,0.29608681,1757.7,1757.5,11.76571191]
[1745521951265,0.29608681,1757.7,1757.5,11.76564682]
[1745521951686,0.29608681,1757.7,1757.5,17.45532995]
[1745521951840,0.29682083,1757.8,1757.5,11.76564504]
[1745521952042,1.19717409,1758.0,1757.5,4.933]
[1745521952362,1.19717409,1758.0,1757.5,10.62274833]
[1745521953071,1.19717409,1758.0,1757.5,16.31242568]
[1745521953364,1.19717409,1758.0,1757.6,6.45412373]
[1745521953666,0.42507409,1758.0,1757.6,6.45412373]
[1745521953875,2.17063488,1758.1,1757.6,6.45412373]
[1745521954331,2.68769837,1758.1,1757.6,6.45412373]
[1745521954532,2.68769837,1758.1,1757.6,6.45410906]
[1745521955184,2.68769837,1758.1,1757.6,12.14348757]
[1745521955344,2.68769837,1758.1,1757.7,5.68923815]
[1745521955545,2.68769837,1758.1,1757.6,6.45407851]
[1745521955770,3.12084683,1758.1,1757.6,6.45407851]
[1745521956377,3.12084683,1758.1,1757.6,12.14346381]
[1745521956678,3.12084683,1758.1,1757.7,5.6892514]
[1745521956982,3.12084683,1758.1,1757.7,5.68922334]
[1745521957774,3.43779897,1758.1,1757.6,8.16170322]
[1745521958695,0.31695214,1758.0,1757.6,8.16170322]
[1745521958974,0.31695214,1758.0,1757.6,13.85105924]
[1745521959353,0.31695214,1758.0,1757.6,8.1617024]
[1745521959679,0.31695214,1758.0,1757.6,13.85108933]
[1745521959855,0.31695214,1758.0,1757.6,13.85108209]
[1745521960177,0.31695214,1758.0,1757.6,8.16170064]
[1745521960570,0.31695214,1758.0,1757.6,8.16169818]
[1745521961008,0.31695214,1758.0,1757.7,5.68922883]
[1745521961859,0.2961977,1757.9,1757.7,5.68922883]
[1745521962390,0.2961977,1757.9,1757.6,8.16169818]
[1745521962681,0.2961977,1757.9,1757.6,13.85107297]
[1745521962885,0.2961977,1757.9,1757.7,7.07429122]
[1745521963178,0.2961977,1757.9,1757.7,1.3851073]
[1745521963960,0.2961977,1757.9,1757.6,0.7647]
[1745521964162,0.2961977,1757.9,1757.6,6.45408295]
[1745521964567,0.61314984,1757.9,1757.6,6.45408295]
[1745521965304,0.2961977,1757.9,1757.7,5.68920866]
[1745521965448,0.2961977,1757.9,1757.7,5.68907858]
[1745521965653,0.2961977,1757.9,1757.7,6.33445644]
[1745521967081,0.2961977,1757.9,1757.7,0.64537786]
[1745521967283,0.2961977,1757.9,1757.6,6.45407633]
[1745521967486,0.2961977,1757.9,1757.8,4.931]
[1745521971190,0.61480781,1757.9,1757.8,4.931]
[1745521975387,0.61480781,1757.9,1757.6,0.7647]
[1745521975663,0.8167,1757.8,1757.4,5.7595]
[1745521975862,0.31861011,1757.7,1757.4,4.931]
[1745521976895,0.31861011,1757.6,1757.4,4.931]
[1745521977812,0.8167,1757.8,1757.4,4.931]
[1745521977965,1.63467458,1757.8,1757.4,4.931]
[1745521978477,0.31880798,1757.7,1757.4,4.931]
[1745521979500,0.31880798,1757.6,1757.4,4.931]
[1745521979707,1.11180798,1757.6,1757.4,4.931]
[1745521980319,0.31880798,1757.5,1757.4,4.931]
[1745521981113,0.793,1757.8,1757.4,4.931]
[1745521981287,0.793,1757.8,1757.4,10.62120529]
[1745521981487,0.793,1757.8,1757.4,4.931]
[1745521981887,0.31879282,1757.7,1757.4,4.931]
[1745521982090,0.61484301,1757.7,1757.4,4.931]
[1745521982622,0.31879282,1757.6,1757.4,4.931]
[1745521983484,0.29605019,1757.7,1757.4,4.931]
[1745521984896,0.29605019,1757.7,1757.4,10.67799363]
[1745521985091,0.29605019,1757.7,1757.5,6.45762185]
[1745521985294,0.29605019,1757.7,1757.5,0.7679]
[1745521985487,0.29605019,1757.7,1757.5,5.6989]
[1745521986120,0.29605019,1757.7,1757.5,4.931]
[1745521986330,1.07115019,1757.7,1757.5,4.931]
[1745521986538,1.07115019,1757.7,1757.2,21.998]
[1745521987100,1.08146337,1757.4,1757.2,4.931]
[1745521987519,0.7629,1757.5,1757.2,4.931]
[1745521987915,0.31830153,1757.4,1757.2,4.931]
[1745521988121,0.31830153,1757.4,1756.9,0.7802]
[1745521988325,0.7693,1757.3,1757.0,4.931]
[1745521988532,1.19808597,1757.3,1757.0,4.931]
[1745521988739,0.31830153,1757.2,1757.0,4.931]
[1745521989727,1.5163875,1757.3,1756.8,6.48283048]
[1745521990043,1.5163875,1757.3,1756.8,12.63217739]
[1745521990201,0.7825,1757.1,1756.8,4.932]
[1745521990532,0.7470875,1757.3,1756.8,11.38403813]
[1745521990533,1.5295875,1757.3,1756.8,11.38403813]
[1745521990735,1.5295875,1757.3,1756.9,5.69168868]
[1745521991288,1.50816487,1757.3,1756.9,10.62368868]
[1745521991493,0.2968789,1757.3,1757.0,5.69150937]
[1745521992646,0.2968789,1757.3,1757.0,10.62350937]
[1745521993239,0.2968789,1757.3,1757.0,4.932]
[1745521993612,0.8316,1757.2,1757.0,4.932]
[1745521994003,0.8316,1757.2,1756.9,4.932]
[1745521996237,1.91306337,1757.2,1756.9,4.932]
[1745521997621,1.91306337,1757.2,1756.6,6.52479894]
[1745521997622,2.2313649,1757.2,1756.6,6.52479894]
[1745521997929,0.8285,1757.1,1756.7,4.93]
[1745521998442,0.572937,1757.1,1756.7,4.93]
[1745521999246,0.572937,1757.1,1756.6,6.52479894]
[1745521999541,0.572937,1757.1,1756.6,14.504751]
[1745522000840,0.572937,1757.1,1756.6,9.573751]
[1745522001011,0.572937,1757.1,1756.7,4.931]
[1745522002346,0.61518043,1757.3,1756.4,5.3385107]
[1745522002347,0.7885,1756.9,1756.4,5.3385107]
[1745522002651,1.07080031,1757.0,1756.5,0.8018]
[1745522002816,1.07080031,1757.0,1756.5,6.49470618]
[1745522003018,1.07080031,1757.0,1756.6,5.69280991]
[1745522003215,1.07080031,1757.0,1756.6,5.69259144]
[1745522003427,1.07080031,1757.0,1756.7,5.69239309]
[1745522003428,0.29590031,1757.0,1756.7,5.69239309]
[1745522003633,1.10730031,1757.0,1756.7,4.931]
[1745522004007,1.10730031,1757.0,1756.7,10.62330609]
[1745522004331,0.29590031,1757.0,1756.7,12.25489584]
[1745522004512,0.29590031,1757.0,1756.7,12.25485887]
[1745522005251,0.29590031,1757.0,1756.8,5.69198642]
[1745522005420,0.29590031,1757.0,1756.8,0.7729]
[1745522005743,0.29590031,1757.0,1756.8,6.46492227]
[1745522005943,0.29590031,1757.0,1756.8,8.33689829]
[1745522006248,0.29590031,1757.0,1756.8,8.33703246]
[1745522006406,0.29590031,1757.0,1756.8,2.64487602]
[1745522006942,0.29590031,1757.0,1756.8,8.3370326]
[1745522007916,0.29590031,1757.0,1756.9,0.05691344]
[1745522008241,0.29590031,1757.0,1756.9,1.40858872]
[1745522008852,0.29590031,1757.0,1756.8,6.46484119]
[1745522009209,0.29590031,1757.0,1756.8,0.7729]
[1745522010547,0.29590031,1757.0,1756.8,6.5217571]
[1745522010726,0.29590031,1757.0,1756.9,5.69184358]
[1745522011057,0.29590031,1757.0,1756.9,10.62284358]
[1745522011214,0.29590031,1757.0,1756.9,6.63976869]
[1745522013231,0.29590031,1757.0,1756.9,12.33161227]
[1745522013446,0.29590031,1757.0,1756.9,4.931]
[1745522016824,0.61420184,1757.0,1756.9,4.931]
[1745522017537,1.42940184,1757.0,1756.9,4.931]
[1745522017737,1.42940184,1757.0,1756.7,4.931]
[1745522017976,0.31830153,1756.9,1756.7,4.931]
[1745522018373,0.31830153,1756.9,1756.7,6.07333117]
[1745522018537,0.31830153,1756.9,1756.7,11.76581382]
[1745522018743,0.31830153,1756.8,1756.7,11.76581382]
[1745522018944,0.31830153,1756.8,1756.7,6.07333117]
[1745522019644,0.31830153,1756.9,1756.7,6.07333117]
[1745522020042,0.31830153,1756.9,1756.7,11.76579533]
[1745522020241,0.31830153,1756.8,1756.7,11.76579533]
[1745522020441,0.31830153,1756.8,1756.7,6.07333117]
[1745522020881,0.31830153,1756.8,1756.7,1.14233117]
[1745522021185,0.31830153,1756.8,1756.4,0.4075107]
[1745522021186,1.3997649,1756.9,1756.4,11.81300171]
[1745522021388,2.2075649,1756.9,1756.4,11.81300171]
[1745522021591,2.2075649,1756.9,1756.4,17.50624071]
[1745522021875,1.12610153,1756.9,1756.4,11.8129497]
[1745522022084,0.31871833,1756.8,1756.4,13.56360372]
[1745522022443,0.31871833,1756.8,1756.5,4.931]
[1745522022877,0.29591407,1756.7,1756.5,4.931]
[1745522023462,0.29591407,1756.7,1756.4,6.88207695]
[1745522023669,0.8078,1756.6,1756.4,0.4075107]
[1745522024494,0.3184849,1756.5,1756.4,0.4075107]
[1745522026998,0.3184849,1756.5,1756.4,1.2319107]
[1745522027283,0.3184849,1756.5,1756.4,0.4075107]
[1745522027788,0.3184849,1756.6,1756.4,0.4075107]
[1745522029049,1.1437849,1756.6,1756.4,0.4075107]
[1745522029488,0.3184849,1756.6,1756.4,0.4075107]
[1745522029984,1.87512307,1756.7,1756.4,0.4075107]
[1745522030877,0.3184849,1756.6,1756.4,0.4075107]
[1745522032084,1.87512307,1756.7,1756.4,0.4075107]
[1745522032994,0.3184849,1756.6,1756.4,0.4075107]
[1745522033793,1.87512307,1756.7,1756.4,0.4075107]
[1745522033993,2.17078171,1756.7,1756.4,0.4075107]
[1745522037565,1.0886849,1756.6,1756.4,0.4075107]
[1745522040201,0.3184849,1756.6,1756.4,1.2082107]
[1745522040495,0.61439897,1756.7,1756.4,6.95837312]
[1745522040707,0.61439897,1756.7,1756.5,5.62683731]
[1745522040865,0.61439897,1756.7,1756.6,6.49351566]
[1745522041605,0.29591407,1756.7,1756.6,6.49351566]
[1745522043705,0.29591407,1756.7,1756.6,6.91708965]
[1745522044109,0.29591407,1756.7,1756.6,6.97400409]
[1745522044408,0.29591407,1756.7,1756.6,8.80338973]
[1745522046065,0.29591407,1756.7,1756.5,0.69583731]
[1745522046268,0.29591407,1756.7,1756.4,6.10616707]
[1745522046479,0.29591407,1756.7,1756.5,5.69288923]
[1745522046671,0.29591407,1756.7,1756.4,12.61486941]
[1745522046980,0.29591407,1756.7,1756.5,10.6230973]
[1745522047197,0.29591407,1756.7,1756.6,1.06230973]
[1745522047572,0.29591407,1756.7,1756.6,6.75512539]
[1745522047765,0.29591407,1756.7,1756.6,7.57062539]
[1745522049101,0.29591407,1756.7,1756.6,12.50062539]
[1745522050504,0.29591407,1756.7,1756.6,7.57062539]
[1745522050708,0.29591407,1756.7,1756.6,12.50062539]
[1745522051003,0.29591407,1756.7,1756.6,6.80780973]
[1745522052203,0.29591407,1756.7,1756.6,12.50062539]
[1745522052704,0.29591407,1756.7,1756.6,6.80780973]
[1745522055419,0.29591407,1756.7,1756.6,1.87780973]
[1745522055598,0.29591407,1756.7,1756.6,6.80780973]
[1745522056417,0.29591407,1756.7,1756.6,12.50062539]
[1745522056619,0.29591407,1756.7,1756.6,6.80780973]
[1745522057020,0.29591407,1756.7,1756.6,12.55754309]
[1745522057321,0.29591407,1756.7,1756.6,12.50062539]
[1745522057540,1.07831407,1756.7,1756.6,1.06230973]
[1745522057821,0.29591407,1756.7,1756.4,6.1061066]
[1745522058117,0.29591407,1756.7,1756.4,6.16303035]
[1745522058419,0.29591407,1756.7,1756.5,0.7791]
[1745522058667,0.29591407,1756.7,1756.5,6.47209683]
[1745522059024,0.29591407,1756.7,1756.5,0.7791]
[1745522059520,0.29591407,1756.7,1756.5,0.68851977]
[1745522059721,0.29591407,1756.7,1756.6,4.928]
[1745522059920,0.29591407,1756.7,1756.6,11.44211566]
[1745522068744,0.29591407,1756.7,1756.6,11.44211566]
[1745522075461,0.29591407,1756.7,1756.6,14.44211566]
[1745522075747,1.11383888,1757.3,1757.1,5.69118588]
[1745522075960,1.11383888,1757.3,1757.2,4.928]
[1745522076131,0.29563888,1757.3,1757.2,4.928]
[1745522076958,0.29563888,1757.3,1757.2,10.61887184]
[1745522077748,0.29563888,1757.3,1757.2,10.67577099]
[1745522078061,0.29563888,1757.3,1757.2,10.67577093]
[1745522078355,0.29563888,1757.3,1757.2,13.05173668]
[1745522078917,0.31845733,1757.5,1757.3,5.69040021]
[1745522079522,1.36321139,1757.6,1757.3,5.69040021]
[1745522080655,1.68166872,1757.6,1757.3,5.69040021]
[1745522081353,1.36321139,1757.6,1757.3,5.69040021]
[1745522081538,1.36321139,1757.6,1757.3,7.56459511]
[1745522085677,1.36321139,1757.6,1757.4,5.69016148]
[1745522085880,0.59231139,1757.6,1757.4,5.69016148]
[1745522086901,0.59231139,1757.6,1757.4,5.69000691]
[1745522087187,0.31845733,1758.1,1757.8,5.68890722]
[1745522087346,0.29553874,1758.0,1757.8,6.06481602]
[1745522087677,0.29553874,1758.0,1757.8,12.52819735]
[1745522087864,0.29553874,1758.0,1757.8,11.75359735]
[1745522088477,0.29553874,1758.0,1757.8,6.06481602]
[1745522088724,0.8259,1757.9,1757.8,4.927]
[1745522089193,0.29553874,1758.0,1757.8,10.61570745]
[1745522089686,0.29553874,1758.0,1757.9,5.68860572]
[1745522090046,0.29553874,1758.0,1757.8,10.61570745]
[1745522091193,0.29553874,1758.0,1757.8,16.30441147]
[1745522091484,0.29553874,1758.0,1757.8,17.93485262]
[1745522091692,0.29553874,1758.0,1757.9,5.68860572]
[1745522091899,0.29553874,1758.0,1757.8,12.24614517]
[1745522092265,0.29553874,1758.0,1757.8,17.9348479]
[1745522092486,0.29553874,1758.0,1757.8,12.24614388]
[1745522092694,0.29553874,1758.0,1757.9,1.22461439]
[1745522093293,0.29553874,1758.0,1757.8,4.927]
[1745522093610,0.29553874,1758.0,1757.8,10.61590928]
[1745522094209,0.29553874,1758.0,1757.8,4.927]
[1745522094785,0.29553874,1758.0,1757.8,10.61570421]
[1745522095337,0.29553874,1758.0,1757.8,4.927]
[1745522095482,0.7931,1757.9,1757.8,4.927]
[1745522096717,0.7931,1757.9,1757.7,4.924]
[1745522096879,0.7931,1757.9,1757.7,10.61314103]
[1745522098115,0.7931,1757.9,1757.7,5.68914103]
[1745522098316,0.7931,1757.9,1757.8,4.924]
[1745522099712,0.7931,1757.9,1757.6,5.68941022]
[1745522100022,0.7931,1757.9,1757.8,4.924]
[1745522100890,0.29553874,1758.0,1757.8,4.924]
[1745522101707,0.8299,1757.9,1757.8,4.924]
[1745522103397,0.29665373,1757.9,1757.8,4.924]
[1745522104130,0.29135662,1757.9,1757.8,4.924]
[1745522108339,0.60981395,1757.9,1757.8,4.924]
[1745522111774,1.41901395,1757.9,1757.8,4.924]
[1745522112473,0.60981395,1757.9,1757.8,4.924]
[1745522114768,2.48177732,1757.9,1757.3,17.8898]
[1745522115094,1.87196337,1757.7,1757.4,4.924]
[1745522115268,0.7905,1757.6,1757.4,4.924]
[1745522115583,0.31845733,1757.5,1757.4,4.924]
[1745522118655,0.61514086,1757.5,1757.4,4.924]
[1745522121223,0.29668353,1757.5,1757.4,4.924]
[1745522124833,0.29668353,1757.5,1757.4,5.7072]
[1745522125012,0.29668353,1757.5,1757.4,7.68170156]
[1745522125338,0.29668353,1757.5,1757.4,13.37192575]
[1745522125834,0.31831308,1757.7,1757.5,5.68972575]
[1745522126038,0.29559555,1757.8,1757.7,0.7832]
[1745522126241,0.29559555,1757.8,1757.7,7.1197191]
[1745522126648,0.31831308,1757.9,1757.8,5.68892934]
[1745522126838,0.31831308,1757.9,1757.8,11.41422934]
[1745522127011,0.59220668,1758.0,1757.9,5.68860572]
[1745522128553,0.59220668,1758.0,1757.8,5.7253]
[1745522128843,0.59220668,1758.0,1757.8,12.6202838]
[1745522129023,0.59220668,1758.0,1757.8,6.93145828]
[1745522130023,0.59220668,1758.0,1757.8,6.12815828]
[1745522130223,1.34970668,1758.0,1757.8,6.12815828]
[1745522130540,1.34970668,1758.0,1757.8,4.922]
[1745522133972,1.66801976,1758.0,1757.8,4.922]
[1745522134972,1.34970668,1758.0,1757.8,4.922]
[1745522135464,0.8048,1757.8,1757.5,4.922]
[1745522135978,0.31831308,1757.8,1757.5,4.922]
[1745522136144,0.31831308,1757.8,1757.6,0.4922]
[1745522137073,0.31831308,1757.9,1757.6,0.4922]
[1745522137270,0.31831308,1757.9,1757.5,5.692]
[1745522137972,0.31831308,1757.8,1757.5,5.692]
[1745522138875,1.11071308,1757.8,1757.5,4.922]
[1745522139076,0.7924,1757.8,1757.5,4.922]
[1745522139690,0.31831308,1757.7,1757.3,17.067]
[1745522139890,1.80260496,1757.7,1757.4,4.922]
[1745522140573,0.31831308,1757.6,1757.4,4.922]
[1745522141970,0.61498115,1757.6,1757.4,4.922]
[1745522143310,0.29666807,1757.6,1757.4,4.922]
[1745522147174,0.59240613,1757.6,1757.4,4.922]
[1745522152051,0.59240613,1757.6,1757.4,5.98323717]
[1745522153875,0.59240613,1757.6,1757.5,0.7988]
[1745522154750,0.59240613,1757.6,1757.4,11.67330606]
[1745522155174,0.59240613,1757.6,1757.4,11.67323598]
[1745522155333,0.29573806,1757.6,1757.5,5.68990042]
[1745522155538,0.29573806,1757.6,1757.5,8.23600405]
[1745522155953,0.29573806,1757.6,1757.5,8.17911406]
[1745522156673,0.29565482,1757.9,1757.6,5.68930309]
[1745522157039,0.29565482,1757.9,1757.8,5.68892934]
[1745522157289,0.29565482,1757.9,1757.8,5.57150128]
[1745522160571,0.29565482,1757.9,1757.8,4.92]
[1745522161142,8.18653699,1757.9,1757.3,0.7718]
[1745522161347,0.8025,1757.6,1757.3,4.92]
[1745522161877,0.31831308,1757.5,1757.3,4.92]
[1745522162062,1.29936945,1757.5,1757.3,4.92]
[1745522162256,0.8025,1757.4,1757.3,4.92]
[1745522162884,1.12081308,1757.4,1757.3,4.92]
[1745522164279,0.31831308,1757.4,1757.3,4.92]
[1745522165151,0.31831308,1757.5,1757.3,4.92]
[1745522167082,1.11461308,1757.6,1757.3,5.98108536]
[1745522167294,0.31831308,1757.6,1757.4,0.7626]
[1745522167814,0.31831308,1757.7,1757.3,5.98108536]
[1745522168816,0.31831308,1757.7,1757.3,11.67156392]
[1745522170817,0.31831308,1757.7,1757.3,5.98108536]
[1745522171025,0.29667838,1757.6,1757.3,5.98108536]
[1745522171551,0.8187,1757.5,1757.3,4.92]
[1745522172221,1.11537838,1757.6,1757.3,4.92]
[1745522173407,1.11537838,1757.6,1757.3,10.61053278]
[1745522173613,1.11537838,1757.6,1757.3,4.92]
[1745522174629,1.43369146,1757.6,1757.3,4.92]
[1745522175628,1.11537838,1757.6,1757.3,4.92]
[1745522176539,1.43369146,1757.6,1757.3,4.92]
[1745522177120,0.29567157,1757.5,1757.3,4.92]
[1745522179540,0.29567157,1757.5,1757.3,5.9810853]
[1745522180950,0.29567157,1757.5,1757.3,4.92]
[1745522181852,1.11537838,1757.6,1757.3,4.92]
[1745522182541,1.43369146,1757.6,1757.3,4.92]
[1745522183259,1.11537838,1757.6,1757.3,4.92]
[1745522185060,0.29667838,1757.6,1757.4,6.44442366]
[1745522185217,0.29667838,1757.6,1757.4,8.14990361]
[1745522185553,0.29667838,1757.6,1757.4,13.83990434]
[1745522185717,0.29667838,1757.6,1757.5,5.68990042]
[1745522186331,0.29667838,1757.6,1757.4,13.83978141]
[1745522186532,0.29667838,1757.6,1757.4,8.14978068]
[1745522186741,0.29667838,1757.6,1757.5,0.81497807]
[1745522188255,0.29667838,1757.6,1757.5,6.50487849]
[1745522188427,0.29667838,1757.6,1757.5,0.81497807]
[1745522188770,0.29667838,1757.6,1757.5,6.50487849]
[1745522188928,0.8069,1758.0,1757.5,6.50487849]
[1745522188929,0.31831308,1757.9,1757.6,6.48347669]
[1745522189260,0.31831308,1757.9,1757.7,4.918]
[1745522189459,0.31831308,1757.9,1757.7,10.60725009]
[1745522189632,0.31831308,1757.9,1757.7,6.62705826]
[1745522189832,0.31831308,1757.8,1757.7,6.62705826]
[1745522190649,0.31831308,1757.9,1757.7,6.62705826]
[1745522191972,0.61359783,1757.9,1757.7,6.62705826]
[1745522192635,0.61359783,1757.9,1757.7,4.918]
[1745522193986,0.61359783,1757.9,1757.7,10.60724343]
[1745522194133,0.61359783,1757.9,1757.7,4.918]
[1745522194538,0.29528475,1757.9,1757.7,4.918]
[1745522197890,0.29528475,1757.9,1757.7,10.60710141]
[1745522198048,0.27281509,1757.9,1757.8,7.53513948]
[1745522198394,0.61496529,1758.0,1757.9,5.68860572]
[1745522198979,0.29665221,1758.0,1757.9,6.53098404]
[1745522199279,0.29527577,1758.1,1758.0,6.47378213]
[1745522199693,0.31831308,1758.2,1758.1,5.68795859]
[1745522199989,0.31831308,1758.2,1758.1,11.82113266]
[1745522200349,0.29658631,1758.3,1758.1,11.82113266]
[1745522200858,0.29658631,1758.3,1758.1,11.82109457]
[1745522201849,0.29658631,1758.3,1758.2,5.68763508]
[1745522202158,0.29658631,1758.3,1758.2,6.47453508]
[1745522202358,0.29658631,1758.3,1758.2,8.30409804]
[1745522204650,0.29582295,1758.4,1758.2,13.99173312]
[1745522205389,0.29582295,1758.4,1758.2,8.30409804]
[1745522205597,0.29582295,1758.4,1758.2,13.99151333]
[1745522205893,0.29582295,1758.4,1758.2,8.30387825]
[1745522207376,0.29582295,1758.4,1758.1,4.917]
[1745522207377,1.10022295,1758.4,1758.1,4.917]
[1745522208910,1.10022295,1758.4,1758.1,10.60485622]
[1745522209398,1.10022295,1758.4,1758.1,4.917]
[1745522213201,0.29582295,1758.4,1758.1,4.917]
[1745522214801,0.29582295,1758.4,1758.2,0.8144]
[1745522215000,0.29582295,1758.4,1758.2,6.50192719]
[1745522215164,0.29582295,1758.4,1758.3,5.74418266]
[1745522215995,0.29582295,1758.4,1758.3,5.6873116]
[1745522216666,0.29582295,1758.4,1758.3,5.744179]
[1745522216867,0.29582295,1758.4,1758.3,5.6873116]
[1745522217067,0.29582295,1758.4,1758.3,7.02042648]
[1745522217267,0.29582295,1758.4,1758.3,1.33311488]
[1745522219505,0.29582295,1758.4,1758.2,7.64390479]
[1745522220408,0.5923672,1758.4,1758.3,5.6873116]
[1745522220704,0.5923672,1758.4,1758.2,7.64379373]
[1745522220911,0.5923672,1758.4,1758.2,13.33124772]
[1745522221206,0.5923672,1758.4,1758.3,5.6873116]
[1745522221399,0.5923672,1758.4,1758.3,7.02041916]
[1745522222301,0.5923672,1758.4,1758.3,1.33310756]
[1745522223010,0.5923672,1758.4,1758.2,7.64373248]
[1745522223011,0.5923672,1758.4,1758.2,1.14191004]
[1745522223198,0.5923672,1758.4,1758.1,4.917]
[1745522224709,0.90891597,1758.4,1758.1,4.917]
[1745522225315,0.31654877,1758.3,1758.1,4.917]
[1745522225614,0.8227,1758.2,1758.1,4.917]
[1745522226314,1.11918556,1758.2,1758.1,4.917]
[1745522227011,0.29648556,1758.2,1758.1,4.917]
[1745522227308,0.29648556,1758.2,1758.1,5.4087]
[1745522228016,0.29648556,1758.2,1758.1,4.917]
[1745522229524,0.61396523,1758.2,1758.1,4.917]
[1745522232197,1.42716523,1758.2,1758.1,4.917]
[1745522235711,1.72374702,1758.2,1758.1,4.917]
[1745522236817,0.91054702,1758.2,1758.1,4.917]
[1745522243150,0.91054702,1758.2,1757.6,0.8331]
[1745522243151,0.7688,1758.1,1757.6,0.8331]
[1745522243452,0.7688,1757.9,1757.5,21.973]
[1745522244112,0.31747967,1757.8,1757.5,21.973]
[1745522244955,1.08627967,1757.9,1757.5,21.973]
[1745522246549,0.29657644,1757.8,1757.5,21.973]
[1745522246714,0.29657644,1757.8,1757.6,2.1973]
[1745522248967,0.29657644,1757.8,1757.7,6.476853]
[1745522249149,0.31747967,1758.0,1757.9,5.68860572]
[1745522249464,0.31747967,1758.0,1757.9,12.5255463]
[1745522249745,0.61407678,1758.4,1758.0,5.68804683]
[1745522250051,0.61407678,1758.4,1758.1,0.56880468]
[1745522250544,0.61407678,1758.4,1758.2,0.804]
[1745522250745,0.29659711,1758.4,1758.2,0.804]
[1745522251547,0.29659711,1758.4,1758.1,1.33690468]
[1745522251749,0.29659711,1758.4,1758.1,7.02473298]
[1745522251910,0.29659711,1758.4,1758.2,0.7024733]
[1745522252656,0.29659711,1758.4,1758.1,7.02485381]
[1745522252822,0.29659711,1758.4,1758.2,5.68758393]
[1745522253348,0.29659711,1758.4,1758.3,4.911]
[1745522253559,0.29659711,1758.4,1758.3,11.3791116]
[1745522254817,0.29659711,1758.4,1758.3,5.6918]
[1745522255016,0.29659711,1758.4,1758.3,6.82972218]
[1745522255745,0.29659711,1758.4,1758.3,12.51703378]
[1745522256263,0.29659711,1758.4,1758.3,6.04892218]
[1745522256470,0.29659711,1758.4,1758.3,4.911]
[1745522256752,0.29659711,1758.4,1757.9,0.7858]
[1745522256922,0.29659711,1758.4,1758.2,4.91]
[1745522257260,0.61407678,1758.4,1758.2,4.91]
[1745522258254,0.29659711,1758.4,1758.2,4.91]
[1745522263459,0.7567,1758.7,1758.3,5.6873116]
[1745522263640,0.59293142,1758.8,1758.4,5.68697822]
[1745522263956,0.59293142,1758.8,1758.5,0.7634]
[1745522264257,0.59293142,1758.8,1758.6,4.91]
[1745522270456,0.59293142,1758.8,1758.6,11.4023792]
[1745522270658,1.13852059,1759.1,1758.7,6.88283137]
[1745522270861,1.73137791,1759.1,1758.7,6.82597752]
[1745522271070,1.41415732,1759.1,1758.7,6.82597752]
[1745522271647,1.41415732,1759.1,1758.7,1.14023792]
[1745522271968,1.41415732,1759.1,1758.6,5.7163]
[1745522272859,1.41415732,1759.1,1758.6,11.40260588]
[1745522273167,1.73137791,1759.1,1758.6,11.40248581]
[1745522273465,1.41415732,1759.1,1758.6,17.08859474]
[1745522274578,1.41415732,1759.1,1758.6,17.0885179]
[1745522274728,1.41415732,1759.1,1758.7,7.45170159]
[1745522274933,0.59285732,1759.1,1758.7,7.39484851]
[1745522275961,0.59285732,1759.1,1758.7,1.70885179]
[1745522276553,0.59285732,1759.1,1758.6,5.7163]
[1745522277061,0.91007791,1759.1,1758.6,5.7163]
[1745522277437,0.91007791,1759.1,1758.6,11.40261617]
[1745522279175,0.7606,1759.0,1758.6,4.91]
[1745522279356,6.76296662,1759.0,1758.6,4.91]
[1745522279559,0.7606,1758.8,1758.7,4.906]
[1745522279941,1.07782059,1758.8,1758.7,4.906]
[1745522280140,6.76351538,1758.8,1758.7,4.906]
[1745522280341,1.07782059,1758.8,1758.7,4.906]
[1745522281659,1.07782059,1758.8,1758.2,1.2979]
[1745522281887,0.31722059,1758.7,1758.5,4.906]
[1745522283492,0.31722059,1758.6,1758.5,4.906]
[1745522284393,0.31722059,1758.7,1758.5,4.906]
[1745522285467,0.31722059,1758.7,1758.5,5.3966]
[1745522286068,1.14412059,1758.9,1758.7,0.31721519]
[1745522286970,0.31722059,1758.8,1758.7,0.31721519]
[1745522287301,0.29634019,1759.1,1758.8,0.8115]
[1745522287464,0.29654276,1759.4,1759.1,0.8115]
[1745522287879,1.12320053,1759.5,1759.1,0.8115]
[1745522289794,7.88815046,1759.5,1758.9,5.7079]
[1745522289973,0.78881505,1759.4,1758.9,5.7079]
[1745522290978,2.2046639,1759.5,1758.9,11.39324116]
[1745522291292,2.62206016,1759.5,1758.9,11.39324116]
[1745522291490,2.62206016,1759.5,1758.9,5.7079]
[1745522292299,7.47860131,1759.5,1758.9,4.906]
[1745522292599,6.44255814,1759.3,1758.9,4.906]
[1745522292896,6.44282435,1759.2,1758.9,4.906]
[1745522293402,3.7584,1759.2,1758.9,4.906]
[1745522294500,6.48307518,1759.1,1758.9,4.906]
[1745522294796,0.7982,1759.0,1758.9,4.906]
[1745522295002,6.48324832,1759.0,1758.9,4.906]
[1745522295199,7.70006067,1759.0,1758.9,4.906]
[1745522295369,2.01501235,1759.0,1758.9,4.906]
[1745522296301,0.7982,1759.0,1758.9,4.906]
[1745522299570,1.11610668,1759.0,1758.9,4.906]
[1745522301610,9.801155,1759.0,1758.9,4.906]
[1745522302303,4.11610668,1759.0,1758.9,4.906]
[1745522303278,4.53701611,1759.0,1758.9,4.906]
[1745522304773,4.53701611,1759.0,1758.7,0.31721519]
[1745522304979,5.55919157,1759.0,1758.7,0.31721519]
[1745522305590,0.31790668,1758.9,1758.7,0.31721519]
[1745522306009,0.31790668,1758.8,1758.7,0.31721519]
[1745522306910,0.31790668,1758.9,1758.7,0.31721519]
[1745522307613,0.31790668,1758.8,1758.7,0.31721519]
[1745522308220,0.61431213,1758.8,1758.7,0.31721519]
[1745522310954,7.38147029,1758.8,1758.7,0.31721519]
[1745522311229,12.88867925,1758.8,1758.7,0.31721519]
[1745522311530,6.12152109,1758.8,1758.7,0.31721519]
[1745522312180,3.61431213,1758.8,1758.7,0.31721519]
[1745522312384,0.61431213,1758.8,1758.7,0.31721519]
[1745522312619,0.31790668,1758.9,1758.7,1.12881519]
[1745522312786,0.61425999,1758.9,1758.7,1.12881519]
[1745522313581,0.29635331,1758.9,1758.7,1.12881519]
[1745522314815,0.29635331,1758.9,1758.7,0.31721519]
[1745522315694,0.61425999,1758.9,1758.7,0.31721519]
[1745522316517,0.29635331,1758.9,1758.7,1.14411519]